bitfinex/quotes_SOLUSD_20251126
["timestamp","ask_amount","ask_price","bid_price","bid_amount"]
[1764192041265,3.08,143.05,143.03,0.72000001]
[1764192041471,3.08,143.05,143.03,7.71149776]
[1764192042567,3.08,143.05,143.03,0.72000001]
[1764192043776,11.94274328,143.04,143.03,1e-08]
[1764192043982,9.09426806,143.04,143.03,0.72000001]
[1764192044871,9.09426806,143.04,143.03,1e-08]
[1764192045081,3.36432314,143.04,143.03,1e-08]
[1764192045977,6.98976564,143.07,143.03,0.67000001]
[1764192046174,11.88994492,143.06,143.03,0.67000001]
[1764192046380,0.14216157,143.05,143.03,0.67000001]
[1764192046879,3.08,143.04,143.03,0.67000001]
[1764192047068,3.08,143.04,143.03,7.66154024]
[1764192047675,0.14216157,143.05,143.03,7.66154024]
[1764192047858,3.08,143.04,143.03,6.99154024]
[1764192048381,3.08,143.04,143.03,7.66154024]
[1764192049267,8.80994492,143.08,143.03,27.98886605]
[1764192049468,3.08,143.07,143.04,3.51847522]
[1764192049856,3.08,143.07,143.05,0.67]
[1764192050058,102.2,143.1,143.06,16.308864]
[1764192050260,2.84847522,143.12,143.07,0.67]
[1764192050478,11.88994492,143.11,143.07,0.67]
[1764192050678,0.28432314,143.1,143.07,0.67]
[1764192051077,12.55994492,143.11,143.07,0.67]
[1764192051272,0.28432314,143.1,143.08,6.989097]
[1764192051481,15.40842014,143.11,143.08,6.989097]
[1764192051790,15.40842014,143.11,143.08,7.659097]
[1764192052091,0.28432314,143.1,143.08,7.659097]
[1764192052792,5.77733902,143.17,143.1,16.308864]
[1764192053097,3.12,143.16,143.13,2.84847522]
[1764192053317,3.12,143.16,143.12,16.308864]
[1764192053595,3.79,143.16,143.12,16.308864]
[1764192053898,3.12,143.16,143.12,16.308864]
[1764192054071,3.12,143.16,143.12,19.15733922]
[1764192054678,3.12,143.16,143.13,6.98665548]
[1764192055088,3.12,143.16,143.13,24.4532942]
[1764192055297,3.79,143.16,143.13,24.4532942]
[1764192056076,3.79,143.16,143.12,23.29590812]
[1764192056497,3.79,143.16,143.12,43.61224247]
[1764192058602,3.79,143.16,143.14,6.98616738]
[1764192058805,3.12,143.16,143.14,6.98616738]
[1764192060280,3.1,143.15,143.14,23.29503138]
[1764192060596,3.1,143.16,143.14,43.60892507]
[1764192060778,0.1,143.19,143.14,43.60892507]
[1764192060779,0.1,143.19,143.17,16.308864]
[1764192060979,3.1,143.18,143.17,19.15733922]
[1764192061193,0.1,143.19,143.17,19.15733922]
[1764192061397,3.1,143.18,143.17,19.15733922]
[1764192062399,3.1,143.18,143.17,23.29356749]
[1764192062604,3.1,143.18,143.12,6.98714365]
[1764192062605,0.28432314,143.17,143.12,6.98714365]
[1764192062793,3.80279836,143.17,143.12,6.98714365]
[1764192062990,3.80279836,143.17,143.11,12.93592286]
[1764192063185,0.67,143.16,143.11,26.14478686]
[1764192065408,0.67,143.16,143.11,43.61386658]
[1764192074519,10.50367639,143.16,143.11,43.61386658]
[1764192075018,0.66,143.15,143.11,43.61386658]
[1764192075205,3.1,143.14,143.11,43.61386658]
[1764192076617,3.76,143.14,143.11,43.61386658]
[1764192077507,3.1,143.14,143.11,23.29631164]
[1764192077714,3.76,143.14,143.11,23.29631164]
[1764192078021,3.76,143.14,143.11,26.14478686]
[1764192079631,3.76,143.14,143.11,23.29631164]
[1764192081609,0.66,143.13,143.11,16.308864]
[1764192081922,0.66,143.13,143.09,6.9884141]
[1764192081923,0.94432314,143.13,143.09,6.9884141]
[1764192082298,0.66,143.12,143.09,6.9884141]
[1764192084511,0.66,143.12,143.08,23.29793539]
[1764192084716,10.49577691,143.12,143.08,23.29793539]
[1764192085113,0.66,143.11,143.08,23.29793539]
[1764192085327,3.1,143.1,143.08,23.29793539]
[1764192085826,3.76,143.1,143.08,23.29793539]
[1764192087921,0.66,143.09,143.08,23.29793539]
[1764192088227,3.1,143.1,143.08,23.29793539]
[1764192088429,3.76,143.1,143.08,23.29793539]
[1764192088728,0.66,143.09,143.08,16.308864]
[1764192089230,0.66,143.09,143.08,23.297961]
[1764192090431,3.1,143.09,143.08,23.297961]
[1764192093504,0.14216157,143.15,143.08,43.61917874]
[1764192093809,2.99063679,143.13,143.08,23.297961]
[1764192094205,0.66,143.12,143.08,23.297961]
[1764192095624,0.28432314,143.13,143.08,43.61917874]
[1764192095809,3.1,143.12,143.09,2.84847522]
[1764192096128,3.76,143.12,143.08,43.61917874]
[1764192098418,0.66,143.12,143.08,43.61917874]
[1764192098623,3.1,143.11,143.1,23.29698419]
[1764192100032,3.76,143.11,143.1,23.29698419]
[1764192100933,3.76,143.11,143.09,6.98845356]
[1764192103433,0.66,143.1,143.09,6.98845356]
[1764192103622,0.66,143.1,143.08,23.29775214]
[1764192103815,0.66,143.1,143.08,23.2978931]
[1764192105324,0.66,143.1,143.08,16.308864]
[1764192105523,0.66,143.1,143.08,23.29788184]
[1764192106535,3.1,143.11,143.08,23.29788184]
[1764192106536,0.28432314,143.11,143.08,23.29788184]
[1764192106736,3.1,143.09,143.08,23.29788184]
[1764192107516,0.69,143.1,143.08,23.29788184]
[1764192107717,3.1,143.09,143.08,23.29788184]
[1764192113540,3.1,143.09,143.08,45.21702043]
[1764192115823,3.1,143.1,143.08,45.21702043]
[1764192116341,0.69,143.13,143.11,16.308864]
[1764192116644,3.1,143.12,143.11,16.308864]
[1764192117526,3.1,143.12,143.11,23.29649589]
[1764192118139,3.79,143.12,143.11,23.29649589]
[1764192118372,3.79,143.12,143.11,16.308864]
[1764192118542,3.79,143.12,143.11,23.29649589]
[1764192119046,3.1,143.12,143.11,23.29649589]
[1764192119247,0.69,143.15,143.11,23.29649589]
[1764192119452,3.1,143.12,143.11,40.76557561]
[1764192119819,0.28432314,143.16,143.11,45.21197168]
[1764192120018,3.1,143.15,143.11,45.21197168]
[1764192120640,3.79,143.15,143.11,45.21197168]
[1764192120844,7.08386771,143.19,143.12,4.44639607]
[1764192121061,0.69,143.17,143.12,4.44639607]
[1764192121349,0.14216157,143.17,143.13,4.44639607]
[1764192121546,0.69,143.18,143.14,45.20684592]
[1764192121751,0.1,143.19,143.15,4.44639607]
[1764192121938,3.1,143.18,143.17,16.308864]
[1764192122326,3.79,143.18,143.17,16.308864]
[1764192122543,0.1,143.19,143.17,16.308864]
[1764192122751,3.1,143.18,143.17,16.308864]
[1764192123426,0.79,143.19,143.18,6.98421567]
[1764192123624,3.89,143.19,143.18,6.98421567]
[1764192124148,3.2,143.19,143.18,6.98421567]
[1764192124652,0.1,143.19,143.18,27.73947574]
[1764192125026,3.1,143.21,143.18,28.89115092]
[1764192125349,0.1,143.25,143.21,16.308864]
[1764192125526,3.1,143.24,143.23,11.42817363]
[1764192126427,0.1,143.25,143.23,11.42817363]
[1764192126631,0.1,143.25,143.24,20.75526007]
[1764192127638,0.82,143.25,143.24,16.308864]
[1764192127833,5.26639607,143.25,143.2,16.308864]
[1764192128238,0.72,143.24,143.2,16.308864]
[1764192128734,1.00432314,143.24,143.2,23.29200164]
[1764192129258,0.72,143.23,143.2,23.29200164]
[1764192129455,3.1,143.22,143.2,23.29200164]
[1764192129852,3.82,143.22,143.2,23.29200164]
[1764192133555,0.72,143.21,143.18,6.98421567]
[1764192133739,0.72,143.21,143.18,23.29307967]
[1764192134060,0.72,143.21,143.18,6.98421567]
[1764192139876,12.43347237,143.21,143.17,16.308864]
[1764192140049,4.44639607,143.2,143.17,16.308864]
[1764192140250,5.15639607,143.2,143.17,23.29353548]
[1764192140451,0.71,143.19,143.17,23.29353548]
[1764192140649,3.08,143.18,143.17,23.29353548]
[1764192141042,3.79,143.18,143.17,23.29353548]
[1764192144762,3.79,143.18,143.17,21.79353548]
[1764192149062,3.79,143.18,143.17,6.98467148]
[1764192149984,3.79,143.18,143.16,6.98519139]
[1764192150772,0.71,143.17,143.16,6.98519139]
[1764192154878,0.71,143.17,143.13,23.29551948]
[1764192155062,5.15639607,143.17,143.13,23.29551948]
[1764192155379,0.71,143.17,143.13,23.29551948]
[1764192155563,14.51102586,143.18,143.13,23.29551948]
[1764192155564,0.71,143.16,143.13,23.29551948]
[1764192155764,0.71,143.16,143.13,40.7621582]
[1764192157575,3.08,143.15,143.13,40.7621582]
[1764192158378,3.79,143.15,143.13,40.7621582]
[1764192159560,3.08,143.15,143.13,40.7621582]
[1764192159774,0.71,143.14,143.13,23.29551948]
[1764192168796,0.99432314,143.14,143.09,20.31580081]
[1764192169106,3.83885714,143.14,143.09,33.78013081]
[1764192169283,0.68,143.13,143.09,33.78013081]
[1764192169479,0.68,143.13,143.09,40.76873937]
[1764192170089,3.08,143.12,143.11,2.844534]
[1764192170487,3.08,143.13,143.12,16.308864]
[1764192170685,3.08,143.13,143.12,26.14054165]
[1764192171711,0.68,143.16,143.12,43.60840078]
[1764192172011,3.08,143.17,143.15,2.844534]
[1764192172187,3.08,143.17,143.16,2.844534]
[1764192172808,3.08,143.17,143.16,9.82972539]
[1764192173014,23.31906565,143.23,143.16,9.82972539]
[1764192173015,0.68,143.19,143.16,9.82972539]
[1764192173237,3.08,143.18,143.12,14.66953997]
[1764192173395,3.08,143.18,143.15,16.308864]
[1764192173590,0.68,143.19,143.15,19.153398]
[1764192173787,3.08,143.18,143.15,19.153398]
[1764192173988,0.68,143.19,143.15,19.153398]
[1764192174213,3.08,143.18,143.16,2.844534]
[1764192174709,0.68,143.21,143.17,2.844534]
[1764192174913,3.08,143.2,143.18,6.98421567]
[1764192175285,0.68,143.19,143.18,6.98421567]
[1764192176217,0.68,143.19,143.17,24.44614992]
[1764192177016,3.08,143.2,143.17,24.44614992]
[1764192177196,3.76,143.2,143.17,24.44614992]
[1764192179203,3.08,143.2,143.17,24.44614992]
[1764192179501,0.68,143.19,143.17,24.44614992]
[1764192179814,3.08,143.2,143.17,24.44614992]
[1764192180016,3.76,143.2,143.17,24.44614992]
[1764192180211,3.08,143.19,143.18,2.844534]
[1764192180416,3.08,143.2,143.18,2.844534]
[1764192180713,3.08,143.2,143.17,27.29068392]
[1764192181015,3.76,143.2,143.17,27.29068392]
[1764192181313,3.76,143.2,143.17,24.44614992]
[1764192181517,3.76,143.2,143.17,27.29068392]
[1764192182619,3.76,143.2,143.18,2.844534]
[1764192184525,3.08,143.2,143.19,2.844534]
[1764192184718,3.76,143.2,143.19,6.98372791]
[1764192184914,3.08,143.2,143.19,6.98372791]
[1764192185600,3.08,143.2,143.19,27.28758169]
[1764192185803,6.54388276,143.23,143.19,27.28758169]
[1764192186009,8.94388276,143.23,143.22,16.308864]
[1764192186825,8.94388276,143.23,143.22,23.29112904]
[1764192187122,5.86388276,143.23,143.22,26.13566304]
[1764192188413,6.57388276,143.23,143.18,17.45994811]
[1764192188714,3.554534,143.22,143.19,6.98337411]
[1764192189021,3.08,143.21,143.19,6.98337411]
[1764192189222,3.79,143.21,143.19,6.98337411]
[1764192189423,0.71,143.2,143.19,6.98337411]
[1764192196131,3.8,143.21,143.19,6.98337411]
[1764192196306,0.72,143.2,143.19,6.98337411]
[1764192196508,3.8,143.21,143.19,6.98337411]
[1764192196707,0.72,143.2,143.19,6.98337411]
[1764192197129,3.8,143.2,143.19,6.98337411]
[1764192197702,3.08,143.2,143.19,6.98337411]
[1764192200430,0.72,143.23,143.19,6.98337411]
[1764192200637,3.08,143.21,143.19,24.44269389]
[1764192203443,3.564534,143.2,143.14,34.92914681]
[1764192203628,0.72,143.2,143.15,27.2937308]
[1764192203828,0.72,143.2,143.16,16.308864]
[1764192204527,0.72,143.2,143.17,6.98470349]
[1764192208126,3.08,143.19,143.17,6.98470349]
[1764192212238,3.08,143.18,143.17,6.98470349]
[1764192217016,3.564534,143.2,143.17,6.98470349]
[1764192217215,3.8,143.19,143.17,6.98470349]
[1764192217538,0.72,143.19,143.17,6.98470349]
[1764192217737,3.08,143.18,143.17,6.98470349]
[1764192218240,3.8,143.18,143.17,6.98470349]
[1764192218848,3.08,143.18,143.17,6.98470349]
[1764192221455,3.8,143.18,143.16,23.29382692]
[1764192221620,0.72,143.18,143.16,23.29382692]
[1764192221823,3.08,143.17,143.16,23.29382692]
[1764192224320,3.08,143.17,143.16,41.4768054]
[1764192225341,3.08,143.17,143.16,40.7568054]
[1764192225531,3.08,143.18,143.16,41.4768054]
[1764192225938,3.08,143.18,143.16,40.7568054]
[1764192227526,3.08,143.18,143.17,7.70470349]
[1764192227841,3.08,143.18,143.17,6.98470349]
[1764192232651,4.44317098,143.21,143.17,6.98470349]
[1764192232857,0.68,143.22,143.18,0.72]
[1764192233233,0.68,143.24,143.2,4.44317098]
[1764192233454,0.1,143.27,143.21,20.75203498]
[1764192233455,3.08,143.23,143.21,20.75203498]
[1764192233630,0.68,143.25,143.21,20.75203498]
[1764192233839,3.08,143.24,143.21,16.308864]
[1764192234362,0.68,143.23,143.2,21.47203498]
[1764192234867,0.68,143.23,143.21,6.9827526]
[1764192236165,3.08,143.24,143.23,16.308864]
[1764192236336,0.68,143.26,143.23,16.308864]
[1764192236535,3.08,143.25,143.23,16.308864]
[1764192236741,3.08,143.25,143.23,20.75203498]
[1764192236942,3.08,143.25,143.24,6.98129014]
[1764192237152,3.76,143.25,143.24,6.98129014]
[1764192242383,0.1,143.29,143.27,16.308864]
[1764192242671,0.1,143.32,143.28,25.19520596]
[1764192242845,0.1,143.32,143.31,20.75203498]
[1764192243047,0.1,143.32,143.31,21.47203498]
[1764192243573,0.1,143.32,143.31,28.4499151]
[1764192246949,0.1,143.35,143.31,80.784016]
[1764192247149,0.1,143.35,143.34,20.75203498]
[1764192247454,0.81,143.35,143.34,20.75203498]
[1764192248268,0.81,143.35,143.34,27.72845468]
[1764192251273,0.1,143.35,143.34,27.72845468]
[1764192252269,0.81,143.35,143.34,27.72845468]
[1764192252979,0.1,143.35,143.34,27.72845468]
[1764192254779,0.1,143.35,143.34,28.40845468]
[1764192255791,0.1,143.35,143.34,29.10609665]
[1764192256679,1e-08,143.36,143.35,0.68]
[1764192256880,1e-08,143.36,143.35,21.43203498]
[1764192258860,1e-08,143.36,143.35,28.40796801]
[1764192263082,0.1,143.37,143.36,9.63210649]
[1764192263083,1e-08,143.37,143.36,9.63210649]
[1764192263285,1e-08,143.39,143.38,16.308864]
[1764192263467,1e-08,143.39,143.38,4.44317098]
[1764192263667,1e-08,143.39,143.38,21.43203498]
[1764192264368,1e-08,143.39,143.38,28.4065084]
[1764192265282,1e-08,143.4,143.39,8.80994492]
[1764192265480,0.69,143.45,143.42,16.308864]
[1764192265783,0.69,143.45,143.44,4.44317098]
[1764192266505,0.69,143.45,143.44,11.41472703]
[1764192270183,0.69,143.45,143.43,6.97193912]
[1764192270385,0.69,143.45,143.44,20.75203498]
[1764192270574,0.69,143.47,143.46,16.308864]
[1764192270770,0.69,143.47,143.46,20.75203498]
[1764192270965,102.3,143.5,143.46,20.75203498]
[1764192271186,0.69,143.49,143.48,20.75203498]
[1764192272186,0.69,143.49,143.48,27.72164746]
[1764192274604,0.1,143.5,143.48,27.72164746]
[1764192274768,0.1,143.5,143.49,4.44317098]
[1764192275278,0.79,143.5,143.49,4.44317098]
[1764192277387,0.79,143.5,143.49,11.41229774]
[1764192281791,0.1,143.5,143.49,11.41229774]
[1764192282176,0.79,143.5,143.49,11.41229774]
[1764192282488,0.1,143.5,143.49,11.41229774]
[1764192282683,0.79,143.5,143.49,9.79863285]
[1764192286203,0.1,143.5,143.49,9.79863285]
[1764192286404,0.78,143.5,143.49,9.79863285]
[1764192286791,0.1,143.5,143.49,10.46863285]
[1764192287606,0.78,143.5,143.49,6.96912676]
[1764192287819,0.1,143.5,143.49,9.79863285]
[1764192290986,0.1,143.5,143.49,10.46863285]
[1764192293294,1e-08,143.5,143.49,10.46863285]
[1764192294287,1e-08,143.5,143.49,31.2935148]
[1764192294483,0.68,143.56,143.53,16.308864]
[1764192294807,0.68,143.56,143.55,2.82950609]
[1764192295007,0.68,143.56,143.55,9.79571995]
[1764192295213,9.79242855,143.62,143.55,27.2112546]
[1764192295411,9.79242855,143.62,143.56,19.13837009]
[1764192295620,6.58950609,143.61,143.56,16.308864]
[1764192295817,0.68,143.6,143.56,19.13837009]
[1764192297011,3.76,143.6,143.58,6.96475832]
[1764192297212,0.68,143.6,143.58,9.79426441]
[1764192297427,0.68,143.59,143.58,9.79426441]
[1764192297712,0.68,143.62,143.58,27.20616021]
[1764192298009,0.68,143.61,143.6,2.82950609]
[1764192299112,0.68,143.61,143.57,6.96518659]
[1764192299313,2.82950609,143.6,143.55,16.308864]
[1764192299611,2.82950609,143.6,143.55,19.13837009]
[1764192299912,0.68,143.59,143.55,16.308864]
[1764192300116,0.68,143.59,143.56,2.82950609]
[1764192300612,0.68,143.59,143.57,2.82950609]
[1764192300910,0.68,143.6,143.58,2.82950609]
[1764192301109,3.76,143.62,143.6,6.9637883]
[1764192301486,0.68,143.61,143.6,6.9637883]
[1764192301691,0.1,143.64,143.6,9.79329439]
[1764192301917,0.68,143.63,143.61,2.82950609]
[1764192302812,0.68,143.63,143.6,6.9637883]
[1764192303498,0.68,143.63,143.59,9.79362553]
[1764192304198,3.08,143.62,143.59,9.79362553]
[1764192304594,0.68,143.61,143.59,9.79362553]
[1764192305298,0.1,143.64,143.59,27.20430872]
[1764192305499,0.1,143.64,143.62,16.308864]
[1764192305700,0.1,143.64,143.63,2.82950609]
[1764192306416,1e-08,143.64,143.63,39.93633937]
[1764192306714,1e-08,143.64,143.63,19.80837009]
[1764192307306,1e-08,143.64,143.63,38.08872822]
[1764192308501,1e-08,143.64,143.63,26.77070386]
[1764192309022,1e-08,143.64,143.63,23.94119777]
[1764192309234,1e-08,143.64,143.63,26.77070386]
[1764192309530,1e-08,143.64,143.63,26.10070386]
[1764192309706,0.67000001,143.64,143.63,26.10070386]
[1764192310101,0.67000001,143.64,143.63,6.96233377]
[1764192310420,0.67000001,143.64,143.63,26.10070386]
[1764192310919,0.67000001,143.64,143.63,9.79183986]
[1764192311314,0.67000001,143.64,143.63,26.10070386]
[1764192311506,0.67000001,143.64,143.63,23.27119777]
[1764192313105,0.67000001,143.64,143.63,6.96233377]
[1764192314124,0.67000001,143.64,143.62,9.79215238]
[1764192318016,3.4995061,143.64,143.55,9.48994492]
[1764192318328,2.82950609,143.63,143.58,19.13837009]
[1764192318533,2.82950609,143.61,143.58,16.308864]
[1764192318934,0.69,143.6,143.58,16.308864]
[1764192319433,0.69,143.62,143.58,19.13837009]
[1764192319636,0.69,143.61,143.59,2.82950609]
[1764192320336,0.69,143.61,143.6,6.9637883]
[1764192320528,0.69,143.61,143.58,33.72048147]
[1764192320529,0.69,143.61,143.59,6.96418826]
[1764192322922,0.69,143.61,143.58,23.27349416]
[1764192328151,3.08,143.63,143.58,26.10300025]
[1764192328454,0.1,143.71,143.65,16.308864]
[1764192328628,0.1,143.71,143.7,2.82950609]
[1764192329049,0.1,143.71,143.69,16.308864]
[1764192329353,0.79,143.71,143.69,15.588864]
[1764192329524,0.79,143.71,143.66,2.82950609]
[1764192329724,3.61950609,143.71,143.67,5.11314307]
[1764192329929,0.79,143.71,143.68,5.11314307]
[1764192330151,0.69,143.7,143.69,5.11314307]
[1764192331125,0.69,143.7,143.69,5.113093]
[1764192331325,0.69,143.7,143.69,21.421957]
[1764192331842,0.69,143.7,143.69,24.25146309]
[1764192332345,0.1,143.71,143.69,31.21088963]
[1764192332548,0.1,143.71,143.7,5.113093]
[1764192332549,0.79,143.71,143.7,5.113093]
[1764192332928,0.79,143.71,143.7,7.94259909]
[1764192334468,0.79,143.71,143.7,5.113093]
[1764192334945,0.79,143.71,143.7,4.393093]
[1764192335944,19.428864,143.73,143.7,5.073093]
[1764192336144,0.1,143.79,143.7,5.073093]
[1764192336145,0.79,143.79,143.73,16.308864]
[1764192336451,0.1,143.79,143.78,5.65901218]
[1764192336638,0.1,143.79,143.78,6.95507024]
[1764192336843,0.1,143.79,143.78,12.61408242]
[1764192337342,5.98950609,143.92,143.81,16.308864]
[1764192337650,0.69,143.86,143.81,16.308864]
[1764192338151,19.468864,143.92,143.81,16.308864]
[1764192338355,0.69,143.91,143.84,8.80994492]
[1764192338647,0.69,143.91,143.88,7.53888029]
[1764192338848,16.998864,143.91,143.87,7.53888029]
[1764192339030,16.998864,143.91,143.88,7.53888029]
[1764192339232,0.69,143.9,143.83,24.33428352]
[1764192339549,0.69,143.9,143.89,7.53888029]
[1764192340054,0.69,143.9,143.88,7.53888029]
[1764192340451,0.79,143.94,143.89,7.53888029]
[1764192340650,0.79,143.94,143.93,7.53888029]
[1764192340651,0.1,143.94,143.93,7.53888029]
[1764192341045,0.79,143.94,143.93,7.53888029]
[1764192341245,0.79,143.94,143.89,16.308864]
[1764192341447,0.79,143.94,143.91,7.53888029]
[1764192341657,1.07432314,143.94,143.9,7.53888029]
[1764192342143,0.69,143.93,143.9,7.53888029]
[1764192342343,3.44432314,143.92,143.91,7.53888029]
[1764192342666,3.16,143.92,143.91,11.66401452]
[1764192342873,3.85,143.92,143.9,11.66401452]
[1764192343047,0.69,143.91,143.9,11.66401452]
[1764192343749,3.85,143.91,143.9,11.66401452]
[1764192344641,0.69,143.91,143.9,11.66401452]
[1764192344835,3.85,143.91,143.9,11.66401452]
[1764192345155,0.8,143.94,143.9,11.66401452]
[1764192345351,3.96,143.94,143.93,11.66401452]
[1764192345953,3.96,143.94,143.89,6.94967757]
[1764192346132,0.8,143.94,143.93,11.66401452]
[1764192346333,0.1,143.94,143.89,6.94967757]
[1764192346538,0.1,143.94,143.92,11.66401452]
[1764192347057,0.7,143.93,143.92,11.66401452]
[1764192347243,0.7,143.93,143.92,16.69340796]
[1764192347640,0.1,143.94,143.92,16.69340796]
[1764192347860,0.1,143.94,143.93,16.69340796]
[1764192348264,0.8,143.94,143.93,16.69340796]
[1764192348573,0.8,143.94,143.92,11.66401452]
[1764192349153,0.8,143.94,143.93,5.01718476]
[1764192349361,0.8,143.94,143.92,11.66401452]
[1764192350258,0.8,143.94,143.87,16.308864]
[1764192350462,0.8,143.94,143.9,11.66401452]
[1764192350664,0.8,143.94,143.84,17.38022154]
[1764192350665,8.03169583,143.94,143.84,17.38022154]
[1764192350843,0.28432314,143.92,143.87,11.66401452]
[1764192351037,0.28432314,143.92,143.85,6.95152677]
[1764192351257,0.7,143.91,143.88,11.66401452]
[1764192351458,3.16,143.9,143.85,24.98074122]
[1764192351659,3.16,143.9,143.86,5.01505455]
[1764192351874,3.86,143.9,143.89,11.66401452]
[1764192352743,3.86,143.9,143.88,11.66401452]
[1764192353043,3.16,143.9,143.88,11.66401452]
[1764192353376,0.7,143.89,143.87,11.66401452]
[1764192354364,3.16,143.9,143.88,27.97287852]
[1764192354667,3.86,143.9,143.88,27.97287852]
[1764192354960,0.7,143.89,143.88,11.66401452]
[1764192355764,0.7,143.89,143.87,11.66401452]
[1764192356978,0.7,143.89,143.88,11.66401452]
[1764192357176,0.7,143.89,143.87,11.66401452]
[1764192358476,0.7,143.89,143.85,17.37921445]
[1764192358672,0.7,143.89,143.87,11.66401452]
[1764192359164,0.7,143.89,143.87,18.61463149]
[1764192359365,0.7,143.89,143.87,6.95061697]
[1764192359584,0.7,143.89,143.87,18.61463149]
[1764192359950,0.28432314,143.92,143.88,11.66401452]
[1764192360149,0.7,143.9,143.87,18.61463149]
[1764192360452,3.84,143.9,143.87,18.61463149]
[1764192360675,3.84,143.9,143.87,11.34903811]
[1764192360884,0.7,143.89,143.86,4.39842114]
[1764192362446,0.7,143.89,143.84,24.98259176]
[1764192362845,3.84,143.89,143.84,24.98259176]
[1764192363066,3.84,143.89,143.87,4.39842114]
[1764192363253,3.84,143.89,143.87,11.34910526]
[1764192363663,0.7,143.88,143.86,11.34944431]
[1764192364169,0.7,143.88,143.86,6.95102317]
[1764192364370,0.7,143.88,143.86,11.34944431]
[1764192364573,0.7,143.88,143.86,18.62180195]
[1764192364775,0.7,143.88,143.86,11.67077878]
[1764192364978,0.7,143.88,143.82,51.07221059]
[1764192364979,0.98432314,143.88,143.8,7.60407639]
[1764192365152,7.23600892,143.85,143.79,18.6251558]
[1764192365357,0.28432314,143.83,143.76,0.65]
[1764192365558,0.28432314,143.83,143.78,11.67077878]
[1764192365758,11.67077878,143.8,143.73,6.95748973]
[1764192366116,14.81077878,143.79,143.74,11.67077878]
[1764192366455,14.81077878,143.79,143.73,18.62826851]
[1764192366456,0.7,143.78,143.73,18.62826851]
[1764192366681,12.65510192,143.78,143.72,7.15782826]
[1764192366885,0.69,143.77,143.72,18.82860704]
[1764192367096,0.69,143.77,143.73,11.67077878]
[1764192367276,0.69,143.77,143.73,18.62796139]
[1764192369781,0.69,143.77,143.72,18.82869965]
[1764192370085,12.36077878,143.77,143.72,0.2]
[1764192370584,0.69,143.76,143.72,0.2]
[1764192370773,0.69,143.76,143.72,7.15787468]
[1764192370973,12.36077878,143.76,143.72,7.15787468]
[1764192371157,3.14,143.75,143.73,11.67077878]
[1764192371356,3.14,143.77,143.74,11.67077878]
[1764192371560,0.69,143.78,143.76,11.67077878]
[1764192371772,0.69,143.8,143.76,11.67077878]
[1764192371969,3.14,143.79,143.77,11.67077878]
[1764192372154,0.69,143.8,143.77,11.67077878]
[1764192372353,3.14,143.8,143.79,11.67077878]
[1764192372880,3.14,143.8,143.78,11.67077878]
[1764192373084,3.83,143.8,143.77,11.67077878]
[1764192373605,3.83,143.8,143.77,18.62592317]
[1764192373880,0.69,143.79,143.77,18.62592317]
[1764192375071,0.69,143.79,143.75,11.67077878]
[1764192375469,0.69,143.79,143.75,18.62711901]
[1764192375764,0.97432314,143.79,143.74,11.67077878]
[1764192375969,11.95510192,143.76,143.72,0.2]
[1764192376168,3.14,143.75,143.72,0.2]
[1764192376369,3.84,143.75,143.72,0.2]
[1764192376569,0.7,143.74,143.72,7.15792218]
[1764192376770,0.7,143.74,143.72,0.2]
[1764192377174,12.65510192,143.74,143.72,0.2]
[1764192377560,0.7,143.73,143.72,0.2]
[1764192379559,3.84,143.73,143.72,0.2]
[1764192382286,0.98432314,143.76,143.72,11.87077878]
[1764192382497,118.508864,143.79,143.74,11.67077878]